bitfinex-derivatives/quotes_SOLF0:USTF0_20241231
["timestamp","ask_amount","ask_price","bid_price","bid_amount"]
[1735655936732,2.535,197.46,197.42,2.5354]
[1735655936932,4.2,197.51,197.36,287.0]
[1735655937624,4.2,197.51,197.33,10.1364]
[1735655937625,4.2,197.51,197.33,5.9364]
[1735655937828,19.78614191,197.45,197.33,5.9364]
[1735655938036,7.1351,197.44,197.33,3.0328]
[1735655938331,19.78614191,197.41,197.29,2.9497]
[1735655938936,2.5364,197.36,197.31,2.5369]
[1735655939629,2.5364,197.36,197.32,2.5368]
[1735655940535,32.09659908,197.42,197.29,2.9497]
[1735655941126,32.09659908,197.42,197.29,7.1497]
[1735655941829,32.09659908,197.42,197.31,2.5368]
[1735655942035,32.09659908,197.42,197.29,2.9497]
[1735655942237,32.09659908,197.38,197.25,3.1354]
[1735655942437,4.2,197.37,197.25,3.1354]
[1735655942836,2.537,197.31,197.26,2.5375]
[1735655943035,4.2,197.37,197.26,2.5375]
[1735655943232,32.09659908,197.34,197.21,290.1485]
[1735655943433,2.5372,197.3,197.23,2.5379]
[1735655943633,2.9465,197.33,197.21,3.1485]
[1735655944334,3.1332,197.32,197.21,3.1485]
[1735655944539,32.09659908,197.3,197.18,3.1968]
[1735655945237,32.09659908,197.3,197.17,3.1427]
[1735655945437,32.09659908,197.3,197.15,291.2]
[1735655945835,2.5377,197.25,197.2,2.5383]
[1735655946534,2.5377,197.25,197.21,2.5382]
[1735655946747,32.09659908,197.3,197.15,291.2]
[1735655946938,4.2,197.37,197.18,319.09659908]
[1735655947136,2.5369,197.32,197.26,2.5375]
[1735655947341,6.2371,197.39,197.22,36.29659908]
[1735655947538,6.2371,197.39,197.23,6.1557]
[1735655947741,2.5363,197.36,197.23,6.1557]
[1735655948039,4.2,197.41,197.26,32.09659908]
[1735655948237,32.09659908,197.4,197.29,2.5371]
[1735655948437,2.5364,197.36,197.24,290.0224]
[1735655948936,32.09659908,197.4,197.15,287.0]
[1735655948937,2.5373,197.28,197.15,287.0]
[1735655949142,36.29659908,197.35,197.16,296.0566]
[1735655950243,32.09659908,197.31,197.16,296.0566]
[1735655950539,2.5376,197.26,197.21,2.5382]
[1735655951040,2.5376,197.26,197.22,2.5381]
[1735655951440,2.5375,197.27,197.22,2.5381]
[1735655951758,32.09659908,197.31,197.16,296.0566]
[1735655951942,2.537,197.31,197.16,296.0566]
[1735655952240,9.1827,197.34,197.16,296.0566]
[1735655952537,2.5377,197.26,197.16,296.0566]
[1735655952943,32.09659908,197.31,197.21,2.5381]
[1735655953138,2.5379,197.24,197.16,9.0566]
[1735655953334,4.2,197.29,197.16,9.0566]
[1735655953539,4.2,197.29,197.21,2.5382]
[1735655953937,4.2,197.29,197.16,9.0566]
[1735655954142,4.2,197.29,197.2,2.5383]
[1735655954445,4.2,197.29,197.16,9.0566]
[1735655955138,6.7372,197.29,197.16,9.0566]
[1735655955537,5.9875,197.34,197.18,32.09659908]
[1735655955742,32.09659908,197.4,197.18,32.09659908]
[1735655955743,4.2,197.38,197.22,32.09659908]
[1735655956046,4.2,197.38,197.23,4.2]
[1735655956243,4.2,197.38,197.23,291.2]
[1735655956244,2.5365,197.35,197.23,291.2]
[1735655956639,2.5372,197.29,197.18,319.09659908]
[1735655956840,32.09659908,197.34,197.18,319.09659908]
[1735655957150,4.2,197.32,197.18,319.09659908]
[1735655957942,32.09659908,197.34,197.18,319.09659908]
[1735655958134,1.526,197.39,197.18,319.09659908]
[1735655958445,2.5365,197.35,197.31,2.5369]
[1735655959540,2.5365,197.35,197.23,4.2]
[1735655959541,2.5367,197.33,197.29,2.5372]
[1735655959845,4.2,197.37,197.23,291.2]
[1735655960249,33.70869908,197.4,197.23,291.2]
[1735655960452,4.2,197.42,197.26,32.09659908]
[1735655960642,2.5358,197.41,197.36,2.5363]
[1735655960837,4.2,197.42,197.36,2.5363]
[1735655961240,32.09659908,197.44,197.29,291.2]
[1735655961445,32.09659908,197.48,197.3,32.09659908]
[1735655961941,32.09659908,197.48,197.35,287.0]
[1735655962146,32.09659908,197.48,197.36,7.1183]
[1735655962353,2.5349,197.48,197.36,7.1183]
[1735655962547,27.18767612,197.5,197.36,2.9183]
[1735655962845,31.30767612,197.5,197.36,289.9183]
[1735655963049,29.69667612,197.5,197.36,289.9183]
[1735655963241,2.535,197.47,197.42,2.5354]
[1735655963545,1.5202,197.52,197.36,309.65285828]
[1735655963546,1.5202,197.52,197.41,4.12]
[1735655963750,2.5341,197.53,197.48,2.5347]
[1735655964051,1.6022,197.56,197.41,291.12]
[1735655964252,19.73455828,197.53,197.41,291.12]
[1735655964444,19.73455828,197.53,197.37,1.5876]
[1735655964445,4.12,197.52,197.37,1.5876]
[1735655964656,19.73455828,197.49,197.37,1.5876]
[1735655964843,19.73455828,197.45,197.36,2.9183]
[1735655965045,19.73455828,197.45,197.32,4.1]
[1735655965253,19.73455828,197.41,197.32,4.1]
[1735655965652,4.1,197.4,197.26,287.0]
[1735655965849,4.1,197.4,197.27,1.4835]
[1735655966156,19.73455828,197.37,197.3,2.5371]
[1735655966344,32.1088069,197.37,197.3,2.5371]
[1735655966548,32.1088069,197.37,197.27,1.4835]
[1735655966747,2.5366,197.34,197.27,1.4835]
[1735655967550,2.5366,197.34,197.29,2.5372]
[1735655968149,32.1088069,197.37,197.29,2.5372]
[1735655968447,32.1088069,197.37,197.27,1.4835]
[1735655969254,32.1088069,197.37,197.21,287.0]
[1735655969457,32.1088069,197.37,197.22,1.4689]
[1735655970151,32.1088069,197.33,197.22,1.4689]
[1735655970453,5.7228,197.32,197.22,1.4689]
[1735655970749,5.7228,197.32,197.17,287.0]
[1735655970954,2.5373,197.28,197.18,1.5557]
[1735655971555,2.5372,197.29,197.18,1.5557]
[1735655971754,1.6028,197.32,197.18,1.5557]
[1735655972856,1.6028,197.32,197.26,2.5375]
[1735655972857,4.1397,197.32,197.26,2.5375]
[1735655973648,1.6028,197.32,197.18,1.5557]
[1735655974157,2.5376,197.27,197.22,2.538]
[1735655974457,32.1088069,197.26,197.14,309.29781999]
[1735655974660,37.7441069,197.26,197.14,309.29781999]
[1735655974861,2.5381,197.22,197.17,2.5387]
[1735655975061,37.7441069,197.26,197.11,288.5273]
[1735655975368,32.1088069,197.23,197.11,1.5273]
[1735655975551,1.499,197.22,197.11,1.5273]
[1735655975748,1.499,197.22,197.12,2.5394]
[1735655976061,32.1088069,197.2,197.12,2.5394]
[1735655976360,4.12,197.19,197.12,2.5394]
[1735655977259,4.12,197.19,197.1,2.5396]
[1735655978262,4.12,197.19,197.05,290.0704]
[1735655978459,32.1088069,197.2,197.08,2.5398]
[1735655978858,32.1088069,197.16,197.05,4.0328]
[1735655979060,1.5942,197.15,197.05,4.0328]
[1735655979356,2.5397,197.1,197.05,2.5402]
[1735655979552,32.1088069,197.13,197.03,2.5404]
[1735655979766,32.1088069,197.13,196.97,345.35748664]
[1735655979767,5.622,197.12,196.97,290.0457]
[1735655980055,2.5399,197.09,196.97,290.0457]
[1735655980263,32.1088069,197.1,196.97,290.0457]
[1735655980556,2.54,197.08,197.03,2.5404]
[1735655980755,5.622,197.12,196.97,322.1545069]
[1735655980955,8.1615,197.12,196.97,322.1545069]
[1735655981154,4.0415,197.12,196.97,322.1545069]
[1735655981554,1.502,197.12,196.97,322.1545069]
[1735655981770,5.7142,197.15,197.01,32.1088069]
[1735655981962,5.7142,197.15,197.02,4.12]
[1735655982465,5.7142,197.15,197.11,2.5395]
[1735655982852,5.7142,197.15,197.02,291.12]
[1735655983061,2.5394,197.12,197.08,2.5399]
[1735655983359,5.7142,197.15,197.02,291.12]
[1735655983754,5.7142,197.15,197.02,287.0]
[1735655984360,4.12,197.15,197.02,287.0]
[1735655984560,4.12,197.15,197.12,2.5394]
[1735655984763,32.1088069,197.2,197.06,4.12]
[1735655984962,4.12,197.27,197.07,291.713]
[1735655985287,4.12,197.27,197.15,319.1088069]
[1735655985468,4.12,197.27,197.15,323.2288069]
[1735655985664,4.12,197.27,197.16,288.5639]
[1735655986364,2.5379,197.25,197.2,2.5383]
[1735655986563,2.5379,197.25,197.16,288.5639]
[1735655987063,2.5379,197.25,197.19,2.5384]
[1735655987965,4.12,197.27,197.19,2.5384]
[1735655988164,2.5379,197.24,197.19,2.5384]
[1735655988366,19.77875293,197.25,197.16,287.0]
[1735655989265,2.5381,197.23,197.16,287.0]
[1735655989462,19.77875293,197.25,197.16,287.0]
[1735655989656,3.0812,197.29,197.16,287.0]
[1735655989866,2.5375,197.27,197.14,4.12]
[1735655990061,4.12,197.28,197.14,4.12]
[1735655990767,2.5377,197.26,197.14,4.12]
[1735655991273,2.5378,197.25,197.2,2.5383]
[1735655991472,2.5378,197.25,197.14,4.12]
[1735655991775,2.5378,197.25,197.2,2.5383]
[1735655992864,2.5378,197.25,197.21,2.5382]
[1735655993664,4.12,197.28,197.21,2.5382]
[1735655993863,2.5376,197.26,197.21,2.5382]
[1735655994072,2.5376,197.26,197.22,2.5381]
[1735655996863,7.1212,197.29,197.14,287.0]
[1735655997067,2.5384,197.2,197.16,2.5389]
[1735655997268,19.77875293,197.22,197.13,1.4598]
[1735655997775,19.77875293,197.19,197.07,7.1891]
[1735655998574,19.77875293,197.19,197.07,3.1491]
[1735655999480,1.5097,197.18,197.07,3.1491]
[1735655999785,2.5392,197.14,197.1,2.5396]
[1735655999972,1.5097,197.18,197.07,3.1491]
[1735656000172,1.5097,197.18,197.14,2.5391]
[1735656000373,19.77875293,197.19,197.07,290.1491]
[1735656000771,19.77875293,197.19,197.07,3.1491]
[1735656000971,1.5097,197.21,197.08,19.77875293]
[1735656001282,2.5382,197.22,197.08,306.77875293]
[1735656002072,2.5381,197.23,197.09,4.04]
[1735656002473,1.5097,197.27,197.18,2.5386]
[1735656002684,2.538,197.24,197.09,291.04]
[1735656002878,1.5097,197.27,197.22,2.5381]
[1735656003179,1.5097,197.27,197.15,291.04]
[1735656003473,4.0472,197.27,197.16,1.557]
[1735656003681,1.5097,197.27,197.16,1.557]
[1735656004381,1.5097,197.27,197.15,287.0]
[1735656004882,2.5385,197.2,197.11,291.04]
[1735656005079,2.5385,197.2,197.11,287.0]
[1735656005277,1.5097,197.27,197.11,4.04]
[1735656005474,1.5097,197.27,197.11,291.04]
[1735656006087,21.28845293,197.27,197.11,291.04]
[1735656006269,4.04,197.26,197.11,291.04]
[1735656006470,2.5382,197.22,197.12,4.04]
[1735656006783,19.77875293,197.24,197.11,287.0]
[1735656007080,2.539,197.16,197.09,5.597]
[1735656007274,2.539,197.16,197.09,1.557]
[1735656007481,2.539,197.16,197.13,2.5393]
[1735656008279,4.04,197.19,197.07,1.5606]
[1735656008879,19.77875293,197.16,197.07,1.5606]
[1735656009581,5.5229,197.19,197.07,1.5606]
[1735656010880,5.5229,197.19,197.11,2.5395]
[1735656011485,5.5229,197.19,197.09,2.5397]
[1735656011783,5.5229,197.19,197.07,1.5606]
[1735656012084,19.77875293,197.16,197.08,2.5398]
[1735656012486,2.5395,197.12,197.08,2.5398]
[1735656012979,2.5397,197.11,197.07,1.5606]
[1735656013886,19.77875293,197.16,197.07,1.5606]
[1735656014078,19.77875293,197.16,197.08,2.5399]
[1735656014079,2.5395,197.12,197.08,2.5399]
[1735656014279,19.77875293,197.16,197.08,2.5399]
[1735656014884,1.5814,197.15,196.97,306.77875293]
[1735656015084,19.77875293,197.1,196.98,2.9679]
[1735656015289,23.81875293,197.1,196.98,2.9679]
[1735656015481,19.77875293,197.07,196.98,1.5041]
[1735656015875,2.541,197.0,196.96,2.5415]
[1735656016084,19.77875293,197.07,196.93,58.1245498]
[1735656016987,1.5339,197.09,196.93,58.1245498]
[1735656017191,23.81875293,197.13,196.94,306.77875293]
[1735656017586,2.5407,197.03,196.99,2.5411]
[1735656018086,23.81875293,197.07,196.94,4.04]
[1735656018285,2.5406,197.04,196.98,2.5411]
[1735656018486,4.04,197.07,196.94,23.81875293]
[1735656018782,4.04,197.11,196.94,310.81875293]
[1735656018995,4.04,197.11,196.97,306.77875293]
[1735656019692,1.5769,197.14,196.97,306.77875293]
[1735656019887,5.6169,197.14,197.0,19.77875293]
[1735656020088,5.6169,197.14,197.01,5.6134]
[1735656020486,2.5397,197.12,197.07,2.5401]
[1735656021591,19.77875293,197.16,197.1,2.5398]
[1735656022292,19.77875293,197.16,197.08,2.54]
[1735656022612,2.5396,197.13,197.08,2.54]
[1735656022790,4.04,197.17,197.02,288.5675]
[1735656022992,1.5074,197.21,197.06,19.77875293]
[1735656023184,4.04,197.23,197.17,2.5388]
[1735656023385,4.04,197.23,197.09,306.77875293]
[1735656023687,4.04,197.23,197.19,2.5387]
[1735656024091,2.5381,197.24,197.19,2.5387]
[1735656024299,1.5533,197.26,197.13,291.04]
[1735656024590,2.5383,197.23,197.17,2.5388]
[1735656025397,2.5383,197.23,197.14,1.462]
[1735656025692,21.33205293,197.26,197.14,1.462]
[1735656025894,19.77875293,197.29,197.14,289.9871]
[1735656026085,21.33205293,197.35,197.18,19.77875293]
[1735656026305,21.33205293,197.35,197.19,5.6347]
[1735656026592,19.77875293,197.32,197.19,5.6347]
[1735656026795,19.77875293,197.26,197.19,1.5947]
[1735656026999,19.77875293,197.26,197.14,5.502]
[1735656027190,19.77875293,197.23,197.14,1.462]
[1735656027385,19.77875293,197.2,197.05,3.1989]
[1735656027588,19.77875293,197.17,197.05,25.62014]
[1735656027786,4.04,197.18,197.05,312.62014]
[1735656027989,23.81875293,197.2,197.05,312.62014]
[1735656028192,23.81875293,197.2,197.09,2.54]
[1735656028396,19.77875293,197.23,197.08,23.81875293]
[1735656028691,19.77875293,197.29,197.14,19.77875293]
[1735656028889,19.77875293,197.29,197.15,8.703]
[1735656029098,19.77875293,197.29,197.15,295.703]
[1735656029495,19.77875293,197.29,197.19,2.5387]
[1735656029993,2.5381,197.24,197.15,8.703]
[1735656030289,19.77875293,197.29,197.15,4.663]
[1735656030593,2.5377,197.27,197.15,4.663]
[1735656030795,19.77875293,197.29,197.15,4.663]
[1735656031294,19.77875293,197.33,197.15,311.44175293]
[1735656031591,23.81875293,197.33,197.15,311.44175293]
[1735656031791,2.5372,197.32,197.26,2.5377]
[1735656031990,19.77875293,197.33,197.26,2.5377]
[1735656032193,19.77875293,197.33,197.2,4.04]
[1735656032386,2.5373,197.31,197.2,4.04]
[1735656032999,2.5373,197.3,197.25,2.538]
[1735656033396,19.77875293,197.33,197.26,2.5378]
[1735656034004,2.5373,197.31,197.26,2.5378]
[1735656034197,19.77875293,197.33,197.2,291.04]
[1735656034794,19.77875293,197.33,197.23,2.5382]
[1735656035498,19.77875293,197.33,197.18,23.81875293]
[1735656035703,19.77875293,197.33,197.18,310.81875293]
[1735656036906,4.04,197.36,197.18,310.81875293]
[1735656037401,19.77875293,197.34,197.19,4.04]
[1735656037898,2.5375,197.29,197.24,2.538]
[1735656038098,2.5375,197.29,197.19,4.04]
[1735656038525,19.77875293,197.34,197.19,4.04]
[1735656038711,2.5371,197.32,197.28,2.5375]
[1735656039097,4.5005,197.37,197.19,4.04]
[1735656039698,2.5377,197.28,197.24,2.5381]
[1735656039898,19.77875293,197.31,197.19,4.04]
[1735656040102,19.77875293,197.34,197.19,4.04]
[1735656040305,2.5372,197.32,197.19,4.04]
[1735656040492,3.041,197.37,197.21,19.77875293]
[1735656040896,2.5369,197.34,197.3,2.5373]
[1735656041096,3.041,197.37,197.26,4.04]
[1735656041302,22.81975293,197.37,197.26,4.04]
[1735656041499,1.4746,197.44,197.26,291.04]
[1735656041500,19.77875293,197.42,197.26,291.04]
[1735656041697,19.77875293,197.42,197.27,3.2023]
[1735656041999,2.5364,197.38,197.34,2.5367]
[1735656042198,19.77875293,197.42,197.34,2.5367]
[1735656042396,19.77875293,197.42,197.27,291.7454]
[1735656043699,1.5446,197.43,197.28,19.77875293]
[1735656043700,2.536,197.41,197.28,19.77875293]
[1735656043900,2.536,197.41,197.28,306.77875293]
[1735656044099,2.5354,197.45,197.4,2.536]
[1735656044404,5.5828,197.49,197.35,4.04]
[1735656044602,5.5828,197.49,197.36,5.5997]
[1735656044901,5.5828,197.49,197.37,1.477]
[1735656045320,5.5828,197.49,197.39,2.5362]
[1735656045705,2.5357,197.43,197.38,2.5363]
[1735656046002,2.5357,197.43,197.37,1.477]
[1735656046401,19.77875293,197.44,197.36,1.5597]
[1735656046601,19.77875293,197.44,197.32,291.04]
[1735656046901,2.5361,197.4,197.35,2.5366]
[1735656047095,19.77875293,197.44,197.32,287.0]
[1735656047497,5.5828,197.49,197.31,4.04]
[1735656047498,19.77875293,197.41,197.31,4.04]
[1735656048201,19.77875293,197.41,197.35,2.5367]
[1735656048506,2.5361,197.4,197.35,2.5367]
[1735656048806,2.5361,197.4,197.31,4.04]
[1735656049007,2.5359,197.41,197.31,4.04]
[1735656049203,19.77875293,197.47,197.31,4.04]
[1735656049512,19.77875293,197.47,197.32,306.77875293]
[1735656049807,2.5355,197.44,197.32,306.77875293]
[1735656050103,2.5355,197.44,197.35,2.5366]
[1735656050307,2.5355,197.44,197.32,306.77875293]
[1735656050806,2.5355,197.44,197.39,2.5361]
[1735656050997,2.5355,197.44,197.32,306.77875293]
[1735656051201,2.5353,197.46,197.32,306.77875293]
[1735656051605,19.77875293,197.47,197.32,287.0]
[1735656051805,2.5354,197.45,197.4,2.5359]
[1735656052008,1.5428,197.49,197.37,4.04]
[1735656052407,2.535,197.48,197.44,2.5354]
[1735656052600,1.5428,197.49,197.38,288.516]
[1735656052805,1.5428,197.49,197.39,1.521]
[1735656053005,1.5428,197.49,197.38,287.0]
[1735656053206,19.77875293,197.47,197.3,287.0]
[1735656053514,19.77875293,197.47,197.31,1.5048]
[1735656053735,19.77875293,197.47,197.37,2.5364]
[1735656053736,2.5358,197.43,197.37,2.5364]
[1735656053902,19.77875293,197.47,197.37,2.5364]
[1735656054103,19.77875293,197.47,197.31,288.5048]
[1735656054299,2.5366,197.36,197.31,1.5048]
[1735656054614,19.77875293,197.43,197.31,1.5048]
[1735656055008,2.5363,197.39,197.34,2.5367]
[1735656055209,19.77875293,197.43,197.31,1.5048]
[1735656056109,2.536,197.41,197.31,1.5048]
[1735656056814,2.536,197.41,197.37,2.5364]
[1735656057210,2.5359,197.42,197.37,2.5363]
[1735656057406,2.5359,197.42,197.31,288.5048]
[1735656057808,2.5359,197.42,197.38,2.5362]
[1735656059211,3.94,197.45,197.38,2.5362]
[1735656059416,3.94,197.45,197.31,288.5048]
[1735656059614,3.94,197.45,197.36,2.5364]
[1735656059916,2.5357,197.43,197.36,2.5364]
[1735656060113,3.94,197.45,197.31,288.5048]
[1735656060316,1.5428,197.49,197.31,308.28355293]
[1735656060613,2.5352,197.47,197.43,2.5356]
[1735656061018,2.5349,197.49,197.37,290.94]
[1735656061216,3.94,197.52,197.37,290.94]
[1735656061217,78.04485293,197.54,197.38,308.38235293]
[1735656061418,25.28485293,197.54,197.38,308.38235293]
[1735656061617,25.28485293,197.54,197.39,288.579]
[1735656061815,2.5348,197.5,197.39,288.579]
[1735656062012,25.28485293,197.54,197.4,1.4855]
[1735656062298,25.28485293,197.54,197.4,288.4855]
[1735656063423,2.5348,197.5,197.46,2.5351]
[1735656063615,1.4698,197.53,197.43,3.94]
[1735656063820,1.5661,197.54,197.43,3.94]
[1735656064328,21.34485293,197.54,197.43,3.94]
[1735656065520,19.77875293,197.51,197.4,288.4855]
[1735656065725,23.71875293,197.51,197.38,1.6036]
[1735656065920,2.5355,197.45,197.38,1.6036]
[1735656066116,1.4787,197.5,197.38,1.6036]
[1735656066518,2.5356,197.44,197.4,2.536]
[1735656066722,1.4787,197.5,197.38,1.6036]
[1735656067023,19.77875293,197.48,197.38,1.6036]
[1735656067624,2.5359,197.42,197.38,1.6036]
[1735656068025,19.77875293,197.48,197.37,2.5363]
[1735656068238,2.5362,197.39,197.35,2.5366]
[1735656068525,3.94,197.44,197.33,1.566]
[1735656068730,2.5362,197.4,197.33,1.566]
[1735656069031,3.94,197.44,197.33,1.566]
[1735656069230,2.5363,197.39,197.35,2.5366]
[1735656069434,23.71875293,197.44,197.33,1.566]
[1735656069630,23.71875293,197.44,197.27,19.77875293]
[1735656069631,19.77875293,197.4,197.27,287.0]
[1735656069824,2.5372,197.31,197.27,2.5377]
[1735656070027,3.94,197.37,197.25,3.0343]
[1735656070228,19.77875293,197.36,197.25,3.0343]
[1735656070450,19.77875293,197.36,197.2,22.37654]
[1735656070736,19.77875293,197.36,197.2,1.5558]
[1735656070927,19.77875293,197.36,197.2,288.5558]
[1735656071130,2.5375,197.29,197.2,288.5558]
[1735656071433,3.94,197.37,197.2,288.5558]
[1735656071633,3.94,197.37,197.28,2.5376]
[1735656071833,3.94,197.37,197.25,290.94]
[1735656072039,1.5794,197.39,197.25,290.94]
[1735656072228,24.1977756,197.43,197.27,19.77875293]
[1735656072527,24.1977756,197.43,197.28,2.9896]
[1735656072724,2.5362,197.39,197.28,5.5271]
[1735656072934,19.77875293,197.41,197.28,2.9896]
[1735656073837,3.1532,197.43,197.28,2.9896]
[1735656074138,2.5363,197.38,197.33,2.5368]
[1735656074538,3.1532,197.43,197.28,289.9896]
[1735656074837,2.5366,197.36,197.31,2.5372]
[1735656076140,19.77875293,197.38,197.24,287.0]
[1735656076332,19.77875293,197.38,197.21,3.0147]
[1735656076638,19.77875293,197.38,197.22,310.71875293]
[1735656076836,3.94,197.38,197.22,310.71875293]
[1735656077635,2.537,197.33,197.28,2.5375]
[1735656077831,2.537,197.33,197.22,310.71875293]
[1735656078232,2.537,197.33,197.25,2.5379]
[1735656078430,2.537,197.33,197.22,310.71875293]
[1735656078833,2.537,197.33,197.29,2.5374]
[1735656079031,19.77875293,197.41,197.22,310.71875293]
[1735656079032,3.94,197.41,197.25,306.77875293]
[1735656079432,23.71875293,197.41,197.25,306.77875293]
[1735656079636,2.5368,197.35,197.25,306.77875293]
[1735656080143,23.71875293,197.41,197.32,2.537]
[1735656080839,2.5367,197.36,197.32,2.537]
[1735656081038,23.71875293,197.41,197.28,3.94]
[1735656081249,23.71875293,197.41,197.3,2.5372]
[1735656081541,2.5368,197.34,197.3,2.5372]
[1735656082632,3.94,197.41,197.31,2.5372]
[1735656082841,23.71875293,197.41,197.28,3.94]
[1735656083838,3.1532,197.43,197.28,3.94]
[1735656084042,19.77875293,197.5,197.33,306.77875293]
[1735656084342,1.605,197.5,197.37,19.77875293]
[1735656084542,2.5352,197.47,197.43,2.5356]
[1735656084736,1.605,197.5,197.37,306.77875293]
[1735656084936,4.1399,197.5,197.45,2.5354]
[1735656085140,19.77875293,197.57,197.4,310.69875293]
[1735656085438,2.534,197.56,197.51,2.5345]
[1735656085636,21.0445756,197.58,197.48,3.92]
[1735656086147,87.30940242,197.61,197.48,290.92]
[1735656086148,3.1311,197.61,197.48,290.92]
[1735656086443,19.77875293,197.6,197.48,290.92]
[1735656086751,2.5342,197.55,197.49,2.5348]
[1735656086942,2.5342,197.55,197.48,290.92]
[1735656087441,19.77875293,197.6,197.48,290.92]
[1735656088643,2.5339,197.57,197.48,290.92]
[1735656088943,19.77875293,197.6,197.48,290.92]
[1735656089141,2.5337,197.58,197.53,2.5343]
[1735656089560,19.77875293,197.6,197.48,290.92]
[1735656089743,2.5336,197.6,197.55,2.5341]
[1735656090441,2.5334,197.61,197.56,2.534]
[1735656091447,2.5337,197.58,197.48,290.92]
[1735656091843,1.605,197.62,197.58,2.5337]
[1735656092152,25.16955293,197.68,197.58,2.5337]
[1735656092341,1.5014,197.67,197.58,2.5337]
[1735656092541,1.5014,197.67,197.57,2.5338]
[1735656093441,2.5333,197.62,197.56,2.534]
[1735656093643,1.5014,197.67,197.56,2.534]
[1735656094138,2.5333,197.62,197.54,3.92]
[1735656094345,1.5014,197.67,197.54,290.92]
[1735656094744,1.5014,197.67,197.54,287.0]
[1735656094942,1.5014,197.67,197.54,290.92]
[1735656095145,19.77875293,197.65,197.54,287.0]
[1735656095945,2.5337,197.59,197.53,2.5344]
[1735656096749,19.77875293,197.65,197.5,3.92]
[1735656097050,2.5332,197.62,197.57,2.5338]
[1735656097750,1.5014,197.67,197.58,2.5336]
[1735656098643,1.5014,197.67,197.56,3.92]
[1735656098849,1.5014,197.67,197.56,2.534]
[1735656099044,1.5014,197.67,197.52,3.92]
[1735656099249,19.77875293,197.62,197.48,287.0]
[1735656099443,3.92,197.61,197.48,287.0]
[1735656099747,5.4214,197.67,197.49,306.77875293]
[1735656100141,19.77875293,197.65,197.49,306.77875293]
[1735656100462,19.77875293,197.62,197.49,287.0]
[1735656100657,3.92,197.61,197.46,287.0]
[1735656100852,19.77875293,197.59,197.47,3.92]
[1735656101249,2.5344,197.54,197.47,3.92]
[1735656102256,1.5107,197.58,197.47,3.92]
[1735656102951,3.92,197.65,197.47,290.92]
[1735656103152,3.92,197.65,197.5,19.77875293]
[1735656103354,3.92,197.65,197.55,2.5341]
[1735656104561,2.5336,197.6,197.5,306.77875293]
[1735656104758,2.5336,197.6,197.55,2.534]
[1735656104961,2.5333,197.62,197.53,3.92]
[1735656105153,3.92,197.65,197.54,3.0955]
[1735656105348,3.92,197.65,197.58,2.5337]
[1735656105552,2.5334,197.61,197.54,3.0955]
[1735656105956,3.0684,197.67,197.59,2.5335]
[1735656106560,2.5333,197.62,197.54,290.0955]
[1735656106759,3.0684,197.67,197.54,290.0955]
[1735656107363,1.5721,197.67,197.61,2.5333]
[1735656107586,19.77875293,197.71,197.54,309.87425293]
[1735656107766,5.4945,197.72,197.57,19.77875293]
[1735656107966,1.5745,197.72,197.57,306.77875293]
[1735656108370,2.991,197.73,197.58,3.92]
[1735656108663,2.991,197.73,197.61,19.77875293]
[1735656109062,2.991,197.73,197.61,287.0]
[1735656109565,2.5323,197.7,197.61,287.0]
[1735656110264,2.5323,197.7,197.67,2.5326]
[1735656110566,2.5321,197.72,197.64,3.92]
[1735656110774,2.5321,197.72,197.65,1.5718]